bitfinex-derivatives/quotes_ETHF0:USTF0_20250501
["timestamp","ask_amount","ask_price","bid_price","bid_amount"]
[1746108215290,6.76357,1835.3,1835.2,4.29743]
[1746108215481,5.674,1835.3,1835.2,4.29743]
[1746108215684,6.76357,1835.3,1835.2,4.29743]
[1746108216183,6.76357,1835.3,1835.2,3.2078]
[1746108216384,6.76357,1835.3,1835.2,4.29743]
[1746108216782,5.674,1835.3,1835.2,4.29743]
[1746108216983,6.76357,1835.3,1835.2,4.29743]
[1746108217285,5.674,1835.3,1835.2,4.29743]
[1746108217490,6.76357,1835.3,1835.2,4.29743]
[1746108217891,6.76357,1835.3,1835.2,3.2078]
[1746108219193,1.08969,1835.1,1835.0,6.267]
[1746108219393,1.08969,1835.1,1835.0,7.35675]
[1746108219691,7.67985,1835.2,1835.1,1.08969]
[1746108220090,1.08965,1835.2,1835.1,1.08969]
[1746108220393,7.67985,1835.2,1835.1,1.08969]
[1746108220696,1.08969,1835.1,1835.0,10.5645]
[1746108220888,1.08969,1835.1,1835.0,9.4748]
[1746108221086,1.08969,1835.1,1835.0,10.56455]
[1746108221287,1.08969,1835.1,1835.0,9.4748]
[1746108221493,1.08969,1835.1,1835.0,10.56455]
[1746108222499,7.67989,1835.2,1835.1,1.08969]
[1746108223196,1.08969,1835.1,1835.0,10.56449]
[1746108223397,1.08969,1835.1,1835.0,10.67348182]
[1746108223798,7.67988,1835.2,1835.1,1.08969]
[1746108224099,1.08969,1835.1,1835.0,10.67348182]
[1746108224287,1.08969,1835.1,1835.0,0.10899182]
[1746108224598,4.29749,1835.1,1835.0,0.10899182]
[1746108225190,2.72464,1834.9,1834.3,4.29794]
[1746108225391,1.09005,1834.5,1834.4,0.10902747]
[1746108225596,1.09005,1834.5,1834.4,1.19913747]
[1746108225804,1.09005,1834.5,1834.4,41.99913747]
[1746108225990,7.84415,1834.6,1834.5,1.09005]
[1746108226194,1.09005,1834.5,1834.4,48.67748747]
[1746108226703,1.09017,1834.3,1834.2,1.09017]
[1746108227002,11.6271,1834.4,1834.0,9.4949]
[1746108227203,1.09021,1834.3,1834.2,1.09019]
[1746108227389,7.28831,1834.3,1834.2,1.09019]
[1746108227589,1.09017,1834.3,1834.2,10.58509]
[1746108227797,1.09017,1834.3,1834.2,6.2871]
[1746108227996,1.09015,1834.4,1834.3,1.09013]
[1746108228497,1.09008,1834.5,1834.4,1.09011]
[1746108229001,1.09017,1834.3,1834.2,7.37727]
[1746108229202,1.09017,1834.3,1834.2,7.3773]
[1746108229398,7.28825,1834.4,1834.3,1.09017]
[1746108230110,6.1981,1834.4,1834.1,1.09023]
[1746108230301,1.09021,1834.3,1834.2,1.0902]
[1746108230601,1.09021,1834.3,1834.2,41.8902]
[1746108231005,7.28823,1834.4,1834.3,1.09017]
[1746108231199,7.28823,1834.4,1834.3,6.6004]
[1746108231702,1.09017,1834.3,1834.2,40.8]
[1746108232501,1.09028,1834.1,1834.0,3.2078]
[1746108232702,1.09028,1834.1,1834.0,4.29814]
[1746108232895,1.09028,1834.1,1834.0,45.09814]
[1746108233697,1.0904,1833.9,1833.8,9.8082]
[1746108233905,1.0904,1833.9,1833.8,3.2078]
[1746108234301,1.0904,1833.9,1833.8,4.29826]
[1746108234602,1.0904,1833.9,1833.8,3.2078]
[1746108234798,1.0904,1833.9,1833.8,4.29826]
[1746108235005,1.0904,1833.9,1833.8,3.2078]
[1746108235302,1.0904,1833.9,1833.8,4.29826]
[1746108235504,7.73289,1834.0,1833.9,1.0904]
[1746108235804,5.208,1834.1,1833.9,2.72595]
[1746108236002,6.29828,1834.1,1834.0,7.82274]
[1746108236203,7.93384,1834.1,1833.6,3.2078]
[1746108236405,1.09054,1833.7,1833.4,12.66684]
[1746108236593,1.09054,1833.7,1833.6,1.09058]
[1746108236797,1.09054,1833.7,1833.6,41.89058]
[1746108237000,1.09052,1833.7,1833.6,41.89054]
[1746108237302,1.09051,1833.8,1833.7,1.09048]
[1746108237507,1.09051,1833.8,1833.7,7.82288]
[1746108238407,1.09051,1833.8,1833.7,6.7324]
[1746108239113,1.09051,1833.8,1833.7,7.82292]
[1746108239299,1.09045,1833.9,1833.8,1.09041]
[1746108239500,1.09046,1833.8,1833.7,7.82287]
[1746108239695,1.09046,1833.8,1833.7,6.7324]
[1746108240106,1.09046,1833.8,1833.7,7.82292]
[1746108240302,1.09046,1833.8,1833.7,6.7324]
[1746108240503,8.65984,1833.9,1832.9,3.2078]
[1746108240699,1.09074,1833.4,1833.3,1.09073]
[1746108241000,1.09074,1833.4,1833.3,41.89073]
[1746108241203,1.09074,1833.4,1833.3,40.8]
[1746108241909,1.09074,1833.4,1833.3,41.89076]
[1746108242105,6.30047,1833.9,1833.8,1.09043]
[1746108242406,3.2078,1834.1,1834.0,1.09034]
[1746108242909,3.2078,1834.1,1834.0,41.89034]
[1746108243308,2.72529,1834.4,1834.1,1.09026]
[1746108243608,1.09023,1834.2,1834.1,7.49057]
[1746108243803,1.09023,1834.2,1834.1,6.4003]
[1746108244310,1.09028,1834.1,1834.0,41.89034]
[1746108244611,1.09028,1834.1,1834.0,48.29064]
[1746108244908,6.4519,1834.3,1834.0,47.2003]
[1746108245115,8.4178,1834.5,1834.3,1.09013]
[1746108245306,1.09015,1834.4,1834.3,1.09013]
[1746108245607,14.8103,1834.5,1834.2,7.53499]
[1746108245608,1.09017,1834.3,1834.2,7.53499]
[1746108245808,1.09017,1834.3,1834.2,6.4448]
[1746108246413,1.09017,1834.3,1834.2,7.53503]
[1746108246905,1.09028,1834.1,1834.0,44.0078]
[1746108247113,1.09046,1833.8,1833.7,7.53529]
[1746108247504,1.09046,1833.8,1833.7,48.33529]
[1746108247910,1.09045,1833.9,1833.8,1.09043]
[1746108249019,7.48289,1834.0,1833.9,1.0904]
[1746108249217,6.30031,1834.1,1834.0,1.09034]
[1746108249419,1.09037,1834.0,1833.9,1.09035]
[1746108249711,1.09037,1834.0,1833.9,7.89025]
[1746108249913,2.72525,1834.5,1833.9,14.52588]
[1746108250106,1.09021,1834.3,1834.2,1.09019]
[1746108250408,1.09021,1834.3,1834.2,6.7999]
[1746108250712,2.72557,1834.2,1833.6,3.2078]
[1746108250911,1.09039,1834.0,1833.9,1.09037]
[1746108251106,8.4178,1834.3,1833.8,9.52602]
[1746108251305,6.1769,1834.7,1833.9,46.7338]
[1746108251507,70.02868,1834.8,1834.5,3.2078]
[1746108251708,9.3847,1834.7,1832.6,0.43497939]
[1746108251909,5.93411,1833.7,1833.1,6.4288]
[1746108252109,1.09079,1833.3,1833.1,6.4288]
[1746108252315,1.09082,1833.2,1833.1,48.31964]
[1746108252520,3.2078,1833.4,1833.1,47.2288]
[1746108252812,1.09079,1833.3,1833.2,6.4288]
[1746108253018,1.09082,1833.2,1833.1,40.8]
[1746108253402,1.091,1832.9,1832.8,9.6366]
[1746108253609,0.47357309,1832.9,1832.8,3.2078]
[1746108253809,0.47357309,1832.9,1832.8,45.09886]
[1746108254619,0.47357309,1832.9,1832.8,50.09886]
[1746108254912,1.56457309,1832.9,1832.8,45.09886]
[1746108255116,0.47357309,1832.9,1832.8,44.0078]
[1746108255314,0.47357309,1832.9,1832.8,45.09886]
[1746108255918,0.47357309,1832.9,1832.8,50.09886]
[1746108257916,7.61863,1833.6,1832.8,50.09886]
[1746108257917,1.09056,1833.7,1832.8,49.0078]
[1746108258118,6.4003,1833.9,1833.6,3.2078]
[1746108258317,6.42753666,1834.0,1833.9,1.0904]
[1746108258622,5.33719666,1834.0,1833.9,1.0904]
[1746108258816,6.42753666,1834.0,1833.9,1.0904]
[1746108259010,5.33719666,1834.0,1833.9,41.8904]
[1746108260022,5.33719666,1834.0,1833.9,41.89029]
[1746108260319,1.09023,1834.0,1833.9,40.8]
[1746108260717,1.09023,1834.0,1833.9,41.89029]
[1746108261119,1.09023,1834.0,1833.9,40.8]
[1746108261617,7.49051,1834.1,1833.9,45.09809]
[1746108261820,5.93234,1834.8,1833.9,44.0078]
[1746108262027,1.08996,1834.5,1834.4,3.2078]
[1746108262226,1.09007,1834.3,1834.2,1.09011]
[1746108262622,1.09007,1834.3,1834.1,1.09013]
[1746108262920,8.99406,1834.5,1834.0,3.2078]
[1746108263222,6.2692,1834.5,1834.0,5.93338]
[1746108263423,6.2692,1834.5,1834.2,3.2078]
[1746108263622,1.09,1834.4,1834.3,1.09003]
[1746108263824,1.09006,1834.3,1834.2,3.2078]
[1746108264019,1.09006,1834.3,1833.9,46.73351]
[1746108264221,1.09002,1834.4,1834.2,1.09006]
[1746108264420,6.2692,1834.5,1834.2,1.09006]
[1746108264617,6.2692,1834.5,1833.9,46.73351]
[1746108264816,6.2692,1834.5,1834.2,1.0901]
[1746108265025,1.09003,1834.4,1834.2,1.0901]
[1746108265330,1.09006,1834.3,1834.2,1.0901]
[1746108265624,1.09004,1834.4,1834.2,1.0901]
[1746108265822,1.09004,1834.4,1834.3,1.09006]
[1746108266828,6.2692,1834.5,1833.9,46.7334]
[1746108267119,1.09,1834.4,1834.2,1.09009]
[1746108267422,1.09,1834.4,1834.1,3.2078]
[1746108267630,3.2078,1834.4,1833.9,40.8]
[1746108267828,7.4053,1834.3,1834.2,1.09012]
[1746108268126,6.3152,1834.3,1834.2,1.09012]
[1746108268720,7.40526,1834.3,1834.2,1.09012]
[1746108268928,6.3152,1834.3,1834.2,1.09012]
[1746108270523,6.764587,1834.3,1834.2,1.09012]
[1746108270729,7.854647,1834.3,1834.2,1.09012]
[1746108270932,1.09023,1834.0,1833.9,41.89027]
[1746108271330,1.539617,1834.0,1833.9,41.89027]
[1746108271532,1.09029,1833.9,1833.8,1.09031]
[1746108271730,7.64909,1833.9,1833.8,1.09031]
[1746108271924,8.098477,1833.9,1833.8,1.09031]
[1746108272121,8.098477,1833.9,1833.8,41.89031]
[1746108273431,8.098477,1833.9,1833.8,48.45881]
[1746108275435,13.098477,1833.9,1833.8,41.89031]
[1746108275731,7.14483054,1834.8,1833.8,8.2078]
[1746108275932,7.14483054,1834.8,1834.5,4.29774]
[1746108276133,6.5081,1834.7,1834.5,41.88994]
[1746108276428,6.5081,1834.7,1834.5,46.88994]
[1746108276630,6.5081,1834.7,1834.5,50.09774]
[1746108277434,7.14483054,1834.6,1834.5,50.09774]
[1746108278726,8.23471054,1834.6,1834.5,40.8]
[1746108279036,8.23475054,1834.6,1834.5,1.08994]
[1746108279427,13.44653054,1834.6,1834.5,1.08994]
[1746108280127,13.44653054,1834.6,1834.5,4.29774]
[1746108280527,13.44653054,1834.6,1834.5,1.08994]
[1746108280730,13.44653054,1834.6,1834.3,40.8]
[1746108281031,14.53641054,1834.6,1834.5,1.08994]
[1746108281229,7.39158,1834.6,1834.5,1.08994]
[1746108281635,7.39158,1834.6,1834.4,1.08995]
[1746108281935,1.08994,1834.5,1834.4,7.48845]
[1746108282133,7.39163,1834.6,1834.4,12.48845]
[1746108282434,7.39163,1834.6,1834.5,1.08994]
[1746108282640,1.09,1834.4,1834.3,40.8]
[1746108283135,1.09,1834.4,1834.3,41.89006]
[1746108283326,1.09,1834.4,1834.3,40.8]
[1746108283834,1.08999,1834.5,1834.3,40.8]
[1746108284033,6.7613,1834.4,1834.3,41.89006]
[1746108284735,7.8513,1834.4,1834.3,41.89006]
[1746108284939,5.194,1834.6,1834.5,1.08994]
[1746108285143,6.3796,1834.6,1834.5,1.08994]
[1746108285833,7.46948,1834.6,1834.5,1.08994]
[1746108286438,6.3796,1834.6,1834.5,1.08994]
[1746108287041,7.46948,1834.6,1834.5,1.08994]
[1746108287737,1.08968,1835.0,1834.6,1.08988]
[1746108287943,7.5176,1834.9,1834.8,1.08976]
[1746108288340,7.96386822,1834.9,1834.8,12.34546]
[1746108289237,0.44626822,1834.9,1834.8,12.34546]
[1746108291144,0.44626822,1834.9,1834.8,17.34546]
[1746108292041,6.44632797,1835.2,1835.1,1.08958]
[1746108292241,6.44628797,1835.2,1835.1,4.29738]
[1746108292446,5.80209586,1835.2,1835.1,9.29738]
[1746108292649,5.80209586,1835.2,1834.9,2.72419]
[1746108292650,1.08964,1835.0,1834.9,3.2078]
[1746108293339,1.53496789,1835.0,1834.9,3.2078]
[1746108294744,1.53496789,1835.0,1834.9,9.2975]
[1746108295139,0.44532789,1835.0,1834.9,9.2975]
[1746108298342,1.53496789,1835.0,1834.9,9.2975]
[1746108298646,0.44532789,1835.0,1834.9,9.2975]
[1746108299051,1.53496789,1835.0,1834.9,9.2975]
[1746108299355,0.44532789,1835.0,1834.9,9.2975]
[1746108299851,1.53496789,1835.0,1834.9,9.2975]
[1746108300356,0.44532789,1835.0,1834.9,9.2975]
[1746108300848,1.53496789,1835.0,1834.9,9.2975]
[1746108301045,1.53496789,1835.0,1834.9,3.2078]
[1746108301242,0.44532789,1835.0,1834.9,4.2975]
[1746108301645,0.44532789,1835.0,1834.9,9.2975]
[1746108302743,0.44532789,1835.0,1834.9,14.2975]
[1746108302949,0.44532789,1835.0,1834.9,9.2975]
[1746108303550,7.18919,1835.3,1835.2,1.08952]
[1746108304051,5.93118,1835.5,1835.4,1.0894]
[1746108304052,7.35754,1835.5,1835.4,1.0894]
[1746108304251,1.08933,1835.6,1835.5,1.08934]
[1746108304548,0.44556389,1835.6,1835.5,1.08934]
[1746108304746,0.44556389,1835.6,1835.5,41.88934]
[1746108304950,0.44556389,1835.6,1835.5,45.09714]
[1746108305847,1.53484389,1835.6,1835.5,45.09714]
[1746108306044,0.44556389,1835.6,1835.5,50.09714]
[1746108306947,1.53484389,1835.6,1835.5,45.09714]
[1746108308349,0.44556389,1835.6,1835.5,50.09714]
[1746108308550,0.44556389,1835.6,1835.5,50.20610213]
[1746108308746,1.08912,1835.9,1835.8,1.08917]
[1746108308946,6.0925,1836.1,1835.8,3.2078]
[1746108309151,6.0925,1836.1,1835.9,6.3018]
[1746108309356,1.53419669,1836.0,1835.9,6.3018]
[1746108309748,1.53419669,1836.0,1835.9,7.39091]
[1746108310050,1.08911,1835.9,1835.8,3.2078]
[1746108310255,7.46541,1835.9,1835.8,4.29697]
[1746108310554,1.53421669,1835.9,1835.8,4.29697]
[1746108311349,1.53421669,1835.9,1835.8,3.2078]
[1746108311847,1.53421669,1835.9,1835.8,4.29697]
[1746108312241,0.44510669,1835.9,1835.8,4.29697]
[1746108312447,1.53421669,1835.9,1835.8,9.29697]
[1746108312647,1.53421669,1835.9,1835.8,8.2078]
[1746108312856,1.08923,1835.7,1835.6,4.29704]
[1746108313151,7.6386,1835.8,1835.7,1.08923]
[1746108313547,7.6386,1835.8,1835.7,6.3782]
[1746108313756,8.08368648,1835.8,1835.7,6.3782]
[1746108314055,8.08368648,1835.8,1835.7,7.46743]
[1746108314759,0.44508648,1835.8,1835.7,12.46743]
[1746108315143,1.08917,1835.8,1835.7,11.3782]
[1746108315350,1.08917,1835.8,1835.7,12.46743]
[1746108316156,1.08917,1835.8,1835.7,11.3782]
[1746108316454,1.08917,1835.8,1835.7,12.46743]
[1746108316656,1.53462423,1835.8,1835.7,12.46743]
[1746108316853,0.44545423,1835.8,1835.7,12.46743]
[1746108317557,6.769764,1837.0,1835.7,21.99713]
[1746108317754,6.769764,1837.0,1836.6,4.29647]
[1746108317755,6.6398,1836.8,1836.6,4.29647]
[1746108317956,6.6398,1836.8,1836.6,3.2078]
[1746108318155,6.6398,1836.8,1836.7,40.8]
[1746108319158,4.650424,1837.0,1836.8,1.08856]
[1746108319357,10.779524,1837.0,1836.8,4.29636]
[1746108319659,9.691064,1837.0,1836.8,3.2078]
[1746108320053,10.779554,1837.0,1836.8,4.29636]
[1746108320255,9.691064,1837.0,1836.8,4.29634]
[1746108320455,10.779564,1837.0,1836.8,3.2078]
[1746108320760,9.691064,1837.0,1836.9,1.08851]
[1746108320963,6.1291,1837.0,1836.9,1.08851]
[1746108321256,7.21755,1837.0,1836.9,1.08851]
[1746108321661,6.1291,1837.0,1836.9,1.08851]
[1746108322561,6.1291,1837.0,1836.9,7.65711]
[1746108323764,10.86525,1837.4,1837.3,1.08828]
[1746108324059,4.650114,1837.6,1837.4,1.08817]
[1746108324248,1.08816,1837.5,1837.3,3.2078]
[1746108324453,4.650084,1837.6,1837.5,1.08816]
[1746108324651,4.650084,1837.6,1837.4,1.08817]
[1746108324854,4.650084,1837.6,1837.3,3.2078]
[1746108325056,3.561964,1837.6,1837.5,4.29596]
[1746108325256,4.650064,1837.6,1837.5,4.29596]
[1746108325458,5.35676797,1837.7,1837.5,13.2078]
[1746108325653,5.35676797,1837.7,1837.6,1.0881]
[1746108325862,0.6947569,1837.7,1837.6,1.0881]
[1746108326068,0.6947569,1837.7,1837.6,53.5751]
[1746108326570,6.7745,1837.9,1837.7,1.08799]
[1746108326761,6.7745,1837.9,1837.8,3.2078]
[1746108327264,6.7745,1837.9,1837.8,8.2078]
[1746108327465,6.7745,1837.9,1837.8,45.8]
[1746108327665,6.7745,1837.9,1837.8,46.88798]
[1746108328379,7.86242,1837.9,1837.8,40.8]
[1746108329076,7.86242,1837.9,1837.8,44.0078]
[1746108329373,7.86242,1837.9,1837.8,40.8]
[1746108330369,6.7745,1837.9,1837.8,46.88798]
[1746108330776,7.86242,1837.9,1837.8,46.88798]
[1746108331071,6.7745,1837.9,1837.8,46.88798]
[1746108331278,1.08789,1838.0,1837.8,52.2976]
[1746108331475,6.7494,1837.9,1837.8,53.38554]
[1746108332172,7.83732,1837.9,1837.8,52.2976]
[1746108332377,6.7494,1837.9,1837.8,53.38558]
[1746108333573,6.7494,1837.9,1837.8,40.8]
[1746108333780,1.08798,1837.8,1837.7,4.29582]
[1746108333980,1.08798,1837.8,1837.6,1.08806]
[1746108334172,6.4976,1837.7,1837.6,1.08806]
[1746108334372,6.4976,1837.7,1837.6,41.88806]
[1746108334674,6.4976,1837.7,1837.6,45.94]
[1746108334976,2.71821,1839.0,1838.1,2.71952]
[1746108335277,7.58515,1838.6,1838.5,3.2078]
[1746108335476,1.08777,1838.2,1838.0,3.2078]
[1746108335667,6.4976,1838.1,1838.0,4.29566]
[1746108335868,0.02688,1838.9,1838.0,13.3478]
[1746108336074,6.4976,1838.4,1838.3,3.2078]
[1746108336269,6.4976,1838.4,1838.3,4.29547]
[1746108336472,7.58523,1838.4,1838.3,3.2078]
[1746108336677,6.4976,1838.4,1838.1,6.8582]
[1746108336881,1.08768,1838.3,1838.1,7.94596]
[1746108337081,6.6983,1838.2,1838.1,7.94596]
[1746108338278,11.06631,1838.8,1838.1,11.8582]
[1746108338479,6.6983,1838.7,1838.3,3.2078]
[1746108338679,1.08759,1838.5,1838.3,4.29546]
[1746108338875,6.6983,1838.4,1838.3,4.29546]
[1746108339078,3.2078,1839.5,1838.4,2.71907]
[1746108339382,1.08734,1838.9,1838.7,1.08742]
[1746108339579,6.6983,1838.8,1838.6,4.29526]
[1746108339887,7.7857,1838.8,1838.6,4.29529]
[1746108340077,7.7857,1838.8,1838.7,40.8]
[1746108340078,6.6983,1838.8,1838.7,40.8]
[1746108340283,6.6983,1838.8,1838.3,3.2078]
[1746108340484,6.6983,1838.8,1838.5,3.2078]
[1746108340684,1.08751,1838.6,1838.5,44.0078]
[1746108340878,1.08751,1838.6,1838.5,40.8]
[1746108341284,1.08749,1838.7,1838.5,41.88757]
[1746108341485,7.79881,1838.6,1838.5,41.88757]
[1746108341689,7.79881,1838.6,1838.5,40.8]
[1746108342584,11.7113,1838.6,1838.0,3.2078]
[1746108342781,3.2078,1838.1,1837.3,0.27200522]
[1746108342981,83.18494,1838.5,1837.3,0.27200522]
[1746108342982,1.08817,1837.5,1837.3,5.24512522]
[1746108343182,6.302,1837.4,1837.3,0.27200522]
[1746108343581,6.302,1837.4,1837.3,41.07200522]
[1746108343782,3.2078,1837.6,1837.4,1.0882]
[1746108344081,7.39001,1837.8,1837.5,1.36016522]
[1746108344289,1.08787,1838.0,1837.7,3.2078]
[1746108344484,14.985,1838.4,1837.8,0.27200522]
[1746108344787,3.2078,1837.9,1837.6,0.27200522]
[1746108344993,1.08808,1837.7,1837.5,0.27200522]
[1746108345290,6.302,1837.6,1837.5,0.27200522]
[1746108345490,6.302,1837.6,1837.5,6.33328522]
[1746108345687,6.302,1837.6,1837.5,14.54108522]
[1746108345885,5.139,1838.3,1837.6,0.27200522]
[1746108346080,5.139,1838.3,1837.9,1.0879]
[1746108346081,1.08782,1838.1,1837.9,1.0879]
[1746108346287,1.0878,1838.1,1838.0,6.6911]
[1746108346488,1.0878,1838.1,1838.0,6.96310522]
[1746108346682,7.62689,1838.2,1838.0,11.93622522]
[1746108347293,6.5391,1838.2,1838.1,3.47980522]
[1746108347485,5.139,1838.3,1838.1,3.47980522]
[1746108347785,1.08765,1838.4,1838.2,7.77882]
[1746108348287,1.08765,1838.4,1838.2,12.75194]
[1746108348488,1.08768,1838.3,1838.2,11.66422]
[1746108349291,1.08764,1838.4,1838.2,12.75192]
[1746108349491,1.08761,1838.5,1838.3,4.29548]
[1746108349691,1.08761,1838.5,1838.4,6.2887]
[1746108353593,1.08768,1838.3,1838.2,1.08774]
[1746108353793,1.08768,1838.3,1838.2,12.82586]
[1746108354194,7.56678,1838.4,1838.2,12.82582]
[1746108354395,6.4791,1838.8,1838.7,1.08745]
[1746108354594,6.4791,1838.8,1838.6,4.29527]
[1746108354595,7.56653,1838.8,1838.6,4.29527]
[1746108354794,7.56653,1838.8,1838.7,6.765]
[1746108355391,9.19761,1838.8,1838.4,5.42400522]
[1746108355587,1.08755,1838.6,1838.5,6.64050522]
[1746108355791,1.08755,1838.6,1838.5,47.44050522]
[1746108355994,6.4791,1838.8,1838.5,53.50117522]
[1746108356192,1.08751,1838.6,1838.5,52.41362522]
[1746108356595,6.4791,1838.8,1838.5,55.62142522]
[1746108356900,1.08751,1838.6,1838.5,55.62142522]
[1746108357199,1.08751,1838.6,1838.5,40.8]
[1746108357491,2.71872,1838.7,1838.3,6.64050522]
[1746108357695,1.08763,1838.4,1838.3,6.64050522]
[1746108357898,2.71833,1838.9,1838.3,55.62142522]
[1746108358096,1.0876,1838.5,1838.4,1.08761]
[1746108358296,1.0876,1838.5,1838.4,7.57961]
[1746108358499,1.0876,1838.5,1838.4,12.55273]
[1746108358898,9.15968,1838.8,1838.4,12.55273]
[1746108359099,6.4412,1838.8,1838.5,1.08754]
[1746108359392,1.08745,1838.7,1838.6,6.76400522]
[1746108359998,1.08757,1838.5,1838.4,0.27200522]
[1746108360200,2.71852,1838.8,1838.4,1.35958522]
[1746108360399,6.4412,1838.8,1838.4,11.73712522]
[1746108360599,1.08755,1838.6,1838.5,1.08755]
[1746108360997,1.08763,1838.4,1838.3,44.27980522]
[1746108361194,1.08763,1838.4,1838.3,45.36748522]
[1746108361397,1.08753,1838.6,1838.5,1.08754]
[1746108361592,1.08757,1838.5,1838.4,0.27200522]
[1746108361787,10.1338,1838.7,1838.5,1.08756]
[1746108361988,15.2368,1838.7,1838.4,0.27200522]
[1746108362188,1.08757,1838.5,1838.4,1.35959522]
[1746108362394,1.08757,1838.5,1838.4,1.35963522]
[1746108362601,1.08757,1838.5,1838.4,1.35961522]
[1746108362903,1.08757,1838.5,1838.4,0.27200522]
[1746108363701,1.08763,1838.4,1838.3,41.07200522]
[1746108363901,8.01363,1838.4,1838.3,42.15968522]
[1746108364101,1.08762,1838.5,1838.4,1.0876]
[1746108364303,7.43683,1838.6,1838.5,1.35957522]
[1746108364494,6.3493,1838.6,1838.5,1.35957522]
[1746108364698,8.3108,1838.7,1838.6,1.08751]
[1746108364903,6.1905,1838.7,1838.6,1.08751]
[1746108365198,6.3493,1838.8,1838.5,3.47980522]
[1746108365404,7.4367,1838.8,1838.5,8.45292522]
[1746108365800,7.4367,1838.8,1838.5,5.24512522]
[1746108366000,7.4367,1838.8,1838.5,8.45292522]
[1746108366196,1.08727,1839.0,1838.7,3.47980522]
[1746108366397,7.43657,1839.0,1838.7,3.47980522]
[1746108366692,6.3493,1839.0,1838.8,1.08739]
[1746108366896,1.08733,1838.9,1838.8,1.08739]
[1746108367199,7.43662,1839.0,1838.9,1.08733]
[1746108367399,7.43657,1839.0,1838.9,1.08733]
[1746108368696,1.08726,1839.1,1839.0,1.08727]
[1746108368911,1.08727,1839.0,1838.9,6.33239522]
[1746108369202,1.08727,1839.0,1838.9,5.24512522]
[1746108369396,1.08733,1838.9,1838.8,0.27200522]
[1746108369604,5.43696,1838.8,1838.4,3.2078]
[1746108369792,15.1044,1839.6,1838.1,0.27200522]
[1746108369793,1.08774,1838.2,1838.1,4.97312]
[1746108369990,1.0878,1838.1,1838.0,5.1113]
[1746108370198,1.08792,1837.9,1837.8,10.70463341]
[1746108370700,1.08792,1837.9,1837.8,10.43262819]
[1746108370899,1.08792,1837.9,1837.8,7.22482819]
[1746108371805,5.103,1838.1,1837.8,15.40574819]
[1746108372003,1.08791,1838.0,1837.9,1.08792]
[1746108372305,4.29552,1838.3,1837.9,2.99180522]
[1746108372508,6.3603,1838.5,1838.3,0.27200522]
[1746108372803,7.44789,1838.5,1838.4,3.47980522]
[1746108372999,14.59272054,1838.5,1838.4,3.47980522]
[1746108373307,1.08763,1838.4,1838.3,3.47980522]
[1746108373601,7.53263,1838.4,1838.3,3.47980522]
[1746108374396,8.23243054,1838.5,1838.4,1.35963522]
[1746108374596,7.14483054,1838.5,1838.4,0.27200522]
[1746108374799,8.23240054,1838.5,1838.4,5.24512522]
[1746108374997,8.23240054,1838.5,1838.4,4.97312]
[1746108375203,1.08763,1838.4,1838.3,0.27200522]
[1746108375407,7.14483054,1838.5,1838.3,8.45292522]
[1746108375605,7.14483054,1838.5,1838.4,1.08763]
[1746108375905,1.08763,1838.4,1838.3,9.54059522]
[1746108376103,8.23244054,1838.5,1838.3,9.54059522]
[1746108376414,7.14483054,1838.5,1838.4,1.35963522]
[1746108376606,7.14483054,1838.5,1838.4,6.31503522]
[1746108376804,7.14483054,1838.5,1838.4,11.28815522]
[1746108377105,1.08738,1838.9,1838.7,1.0874]
[1746108377306,1.08733,1838.9,1838.8,3.47980522]
[1746108377504,2.71804,1839.1,1838.8,0.27200522]
[1746108377695,1.08733,1838.9,1838.8,0.27200522]
[1746108378502,1.08733,1838.9,1838.8,1.35939522]
[1746108378711,3.2078,1839.1,1838.8,0.27200522]
[1746108378898,1.08727,1839.0,1838.9,7.16250522]
[1746108379601,1.08727,1839.0,1838.4,7.67438]
[1746108379602,1.08739,1838.8,1838.7,3.47980522]
[1746108379809,1.08739,1838.8,1838.7,0.27200522]
[1746108380007,1.08745,1838.7,1838.6,0.27200522]
[1746108380208,1.08745,1838.7,1838.6,6.61680522]
[1746108380406,2.71824,1839.0,1838.6,11.58992522]
[1746108380702,1.08724,1839.1,1838.9,0.27200522]
[1746108380902,7.14483054,1839.3,1839.2,1.35915522]
[1746108381102,8.23192054,1839.3,1839.2,41.07200522]
[1746108381407,1.08721,1839.1,1839.0,9.82460522]
[1746108381706,1.08721,1839.1,1839.0,50.62460522]
[1746108381909,1.08721,1839.1,1839.0,50.3526]
[1746108382206,1.08721,1839.1,1839.0,50.62460522]
[1746108382597,1.08721,1839.1,1839.0,56.68499522]
[1746108382797,8.23192054,1839.3,1839.2,0.27200522]
[1746108383200,7.14483054,1839.3,1839.2,1.08715]
[1746108383408,7.14483054,1839.3,1839.2,1.35915522]
[1746108383807,7.14483054,1839.3,1839.2,6.33227522]
[1746108384110,1.08703,1839.4,1839.3,1.08705]
[1746108384308,1.08703,1839.4,1839.3,7.29865]
[1746108384611,1.08703,1839.4,1839.3,12.27177]
[1746108384807,1.08702,1839.5,1839.3,12.27177]
[1746108385211,1.08702,1839.5,1839.4,6.2116]
[1746108385504,9.86201054,1839.7,1839.4,6.2116]
[1746108385505,1.08693,1839.6,1839.4,6.48360522]
[1746108385715,1.08698,1839.5,1839.4,10.77840522]
[1746108385915,7.14483054,1839.7,1839.4,10.77840522]
[1746108385916,7.14483054,1839.7,1839.5,1.35894522]
[1746108386120,8.23169054,1839.7,1839.6,6.2149]
[1746108386508,8.23169054,1839.7,1839.6,11.46002522]
[1746108386913,8.23169054,1839.7,1839.6,11.18802]
[1746108387114,1.08698,1839.5,1839.4,3.2078]
[1746108387312,1.08698,1839.5,1839.4,9.4227]
[1746108387814,1.08698,1839.5,1839.4,10.50973]